bitfinex/quotes_SOLUSD_20250601
["timestamp","ask_amount","ask_price","bid_price","bid_amount"]
[1748767607825,6.51932981,153.39,153.32,6.52215035]
[1748767617630,10.36,153.4,153.35,18.64964886]
[1748767618149,17.03132597,153.44,153.35,18.64964886]
[1748767619039,17.03132597,153.44,153.36,6.52060511]
[1748767619040,6.51772856,153.43,153.36,6.52060511]
[1748767620639,17.03132597,153.44,153.36,6.52060511]
[1748767620851,23.54876056,153.44,153.36,6.52060511]
[1748767621015,0.28432314,153.43,153.34,26.0]
[1748767622157,17.03132597,153.44,153.35,18.64964886]
[1748767622435,17.03132597,153.44,153.36,0.14216157]
[1748767622638,23.5485516,153.44,153.37,6.52017995]
[1748767623840,17.03132597,153.44,153.37,6.52017995]
[1748767624751,23.54861811,153.44,153.37,6.52017995]
[1748767624920,10.36,153.44,153.37,6.52017995]
[1748767625125,16.87723282,153.44,153.37,6.52017995]
[1748767627745,16.87723282,153.44,153.34,115.6]
[1748767628158,24.22600645,153.48,153.4,0.14216157]
[1748767628640,24.22600645,153.48,153.39,58.56964886]
[1748767628817,1.5302,153.47,153.39,58.56964886]
[1748767629731,1.5302,153.47,153.39,46.43910133]
[1748767630448,1.5302,153.47,153.39,6.51910133]
[1748767630945,6.80067919,153.46,153.38,32.51965329]
[1748767631350,6.80067919,153.46,153.38,6.51965329]
[1748767632143,6.80067919,153.46,153.37,6.52017995]
[1748767634854,34.04629401,153.47,153.37,41.4702787]
[1748767635026,8.04629401,153.47,153.37,81.3902787]
[1748767636752,1.5302,153.47,153.39,22.81765434]
[1748767639247,8.1651,153.47,153.39,22.81765434]
[1748767641430,14.68112477,153.47,153.39,22.81765434]
[1748767643539,14.68112477,153.47,153.39,6.51932981]
[1748767644047,30.9709534,153.47,153.38,6.51958853]
[1748767645658,14.68112477,153.47,153.38,25.16923739]
[1748767645885,8.1651,153.47,153.39,18.79181043]
[1748767646960,14.68104078,153.47,153.39,18.79181043]
[1748767647462,14.68104078,153.47,153.4,6.51890482]
[1748767647657,8.1651,153.47,153.4,6.51890482]
[1748767649633,1.5302,153.47,153.4,6.51890482]
[1748767650460,8.04625364,153.47,153.4,6.51890482]
[1748767651044,8.04625364,153.47,153.38,6.51975485]
[1748767652171,0.28432314,153.46,153.37,6.52004854]
[1748767653472,6.51678071,153.45,153.36,6.52060511]
[1748767657872,22.80873248,153.45,153.36,6.52060511]
[1748767660163,6.51763018,153.43,153.36,6.52060511]
[1748767660342,16.87763018,153.43,153.36,6.52060511]
[1748767660846,18.48243018,153.43,153.36,6.52060511]
[1748767665398,10.36,153.43,153.37,18.933972]
[1748767665574,11.8461,153.47,153.39,18.79181043]
[1748767665893,11.8461,153.47,153.41,18.79181043]
[1748767666096,18.36213297,153.47,153.4,39.9]
[1748767667378,18.36213297,153.47,153.41,6.51847989]
[1748767667888,18.36213297,153.47,153.4,46.41875639]
[1748767671270,18.36213297,153.47,153.4,46.41875639]
[1748767681399,11.8461,153.47,153.41,18.79181043]
[1748767681700,10.34,153.47,153.41,18.79181043]
[1748767682578,10.34,153.47,153.42,6.51805501]
[1748767683812,10.34,153.47,153.41,6.5183029]
[1748767683813,16.85605491,153.47,153.41,6.5183029]
[1748767685106,10.34,153.47,153.41,6.5183029]
[1748767685674,10.34,153.47,153.41,41.46415148]
[1748767685907,24.27630614,153.51,153.42,18.79181043]
[1748767685908,11.958,153.51,153.42,18.79181043]
[1748767686786,18.47235728,153.51,153.43,6.51763018]
[1748767691705,18.47235728,153.51,153.43,22.81170565]
[1748767691907,11.958,153.51,153.44,18.79181043]
[1748767692209,11.958,153.51,153.45,39.88]
[1748767692594,10.34,153.51,153.45,39.88]
[1748767692796,6.65592377,153.52,153.48,18.64964886]
[1748767693009,11.9794,153.55,153.49,0.14216157]
[1748767693190,10.32,153.55,153.49,0.28432314]
[1748767693393,155.5281,153.58,153.5,39.88]
[1748767693591,13.03947189,153.58,153.5,39.88]
[1748767693802,13.03947189,153.58,153.51,6.5142336]
[1748767693997,1.6594,153.53,153.5,39.88]
[1748767694220,1.6594,153.53,153.47,26.0]
[1748767694812,1.6594,153.53,153.46,6.51608289]
[1748767695497,13.04190927,153.52,153.45,72.39666384]
[1748767696305,13.04190927,153.52,153.45,32.51666384]
[1748767696503,13.04190927,153.52,153.45,72.39666384]
[1748767696701,6.5281,153.52,153.45,72.39666384]
[1748767696921,6.5281,153.52,153.46,18.79181043]
[1748767697136,1.6594,153.53,153.46,18.79181043]
[1748767698536,1.6594,153.53,153.49,26.0]
[1748767698744,1.6594,153.53,153.5,6.51465798]
[1748767700325,1.6594,153.53,153.47,26.0]
[1748767700731,1.6594,153.53,153.45,39.86]
[1748767701027,1.6594,153.53,153.44,39.86]
[1748767701403,36.32,153.54,153.44,39.86]
[1748767702118,6.51343798,153.53,153.44,46.37720542]
[1748767702908,22.79690049,153.53,153.43,36.32]
[1748767703106,22.79690049,153.53,153.43,65.86]
[1748767703305,22.79690049,153.53,153.43,72.37760333]
[1748767704329,22.79690049,153.53,153.43,32.51760333]
[1748767704510,22.79690049,153.53,153.43,72.37760333]
[1748767713425,22.79690049,153.53,153.4,18.64964886]
[1748767713426,22.7998176,153.51,153.4,18.64964886]
[1748767713626,22.7998176,153.51,153.41,65.86]
[1748767714033,28.96964886,153.58,153.46,18.79181043]
[1748767714339,26.0,153.55,153.47,39.86]
[1748767715009,6.51296079,153.54,153.48,6.5155069]
[1748767716612,6.51296079,153.54,153.45,26.0]
[1748767716916,6.51296079,153.54,153.45,72.37664712]
[1748767717117,10.32,153.53,153.45,72.37664712]
[1748767717339,10.32,153.53,153.42,6.51805501]
[1748767717651,10.32,153.53,153.43,39.86]
[1748767719127,6.51380927,153.52,153.44,6.51720542]
[1748767721030,22.79833245,153.52,153.43,6.51756982]
[1748767721360,22.79833245,153.52,153.43,46.37756982]
[1748767721953,6.51465798,153.5,153.43,6.51756982]
[1748767722115,6.51465798,153.5,153.42,32.51789855]
[1748767722319,22.80130293,153.5,153.39,18.64964886]
[1748767722521,22.80130293,153.5,153.4,39.86]
[1748767722721,22.80130293,153.5,153.4,26.0]
[1748767722924,22.80130293,153.5,153.4,65.86]
[1748767723543,16.28664495,153.5,153.41,6.51847989]
[1748767726533,6.5155069,153.48,153.41,6.51847989]
[1748767727656,22.80427416,153.48,153.35,16.30174693]
[1748767727844,22.80427416,153.48,153.34,89.6]
[1748767727845,26.0,153.44,153.36,6.52060511]
[1748767728162,26.0,153.44,153.34,58.50964886]
[1748767728163,0.28432314,153.43,153.33,6.52188091]
[1748767728545,0.28432314,153.43,153.33,46.38188091]
[1748767729234,6.51805501,153.42,153.33,46.38188091]
[1748767730665,6.51805501,153.42,153.29,18.64964886]
[1748767730666,26.0,153.39,153.29,18.64964886]
[1748767730973,10.32,153.38,153.28,6.52400835]
[1748767731136,10.32,153.38,153.28,46.38400835]
[1748767731340,10.32,153.38,153.28,72.38400835]
[1748767731933,6.52017995,153.37,153.28,72.38400835]
[1748767735880,16.83985127,153.38,153.29,18.79181043]
[1748767736375,16.83977173,153.38,153.29,18.79181043]
[1748767736575,16.83977173,153.38,153.28,88.69402922]
[1748767736945,16.83977173,153.38,153.28,72.38400835]
[1748767739860,6.52060511,153.36,153.28,72.38400835]
[1748767742568,8.14423501,153.37,153.28,72.38400835]
[1748767744893,8.14423501,153.37,153.28,88.69402922]
[1748767746292,8.14423501,153.37,153.28,72.38400835]
[1748767746489,26.0,153.36,153.27,6.52437686]
[1748767746695,26.0,153.34,153.25,6.5248998]
[1748767746866,10.32,153.33,153.25,46.4048998]
[1748767747689,10.32,153.33,153.27,0.14216157]
[1748767747877,10.32,153.33,153.26,18.64964886]
[1748767748077,16.84194632,153.33,153.27,6.524434]
[1748767749373,16.84194632,153.33,153.26,6.52470821]
[1748767750688,16.84194632,153.33,153.25,6.52528548]
[1748767750867,16.84194632,153.33,153.25,46.42528548]
[1748767751590,59.14664859,153.33,153.24,46.42562941]
[1748767752993,59.14664859,153.33,153.23,46.42599752]
[1748767755361,59.14664859,153.33,153.23,6.52599752]
[1748767755590,59.14664859,153.33,153.23,46.42599752]
[1748767756496,59.14664859,153.33,153.23,6.52599752]
[1748767759494,42.84194632,153.33,153.25,6.52528548]
[1748767760806,42.84194632,153.33,153.25,22.83849918]
[1748767760980,36.32,153.33,153.25,22.83849918]
[1748767761181,36.32,153.33,153.26,18.79181043]
[1748767763193,10.32,153.33,153.27,62.73551901]
[1748767763704,1.6255,153.35,153.28,18.79181043]
[1748767763880,10.32,153.37,153.28,18.79181043]
[1748767764981,10.32,153.37,153.29,22.83253962]
[1748767765177,10.32,153.37,153.3,18.79181043]
[1748767765379,95.5255,153.39,153.31,0.14216157]
[1748767765587,11.26316888,153.4,153.33,18.79181043]
[1748767765794,11.26316888,153.4,153.34,0.14216157]
[1748767765986,10.32,153.41,153.34,0.14216157]
[1748767766983,10.32,153.41,153.35,6.52103032]
[1748767767690,10.32,153.41,153.35,22.82360612]
[1748767770296,10.32,153.41,153.35,6.52103032]
[1748767771115,10.32,153.41,153.35,22.82360612]
[1748767772601,10.32,153.41,153.35,6.52103032]
[1748767773895,16.83849143,153.41,153.35,6.52103032]
[1748767774308,6.0169,153.4,153.35,6.52103032]
[1748767774995,7.5624,153.4,153.35,6.52103032]
[1748767781506,1.5455,153.4,153.35,6.52103032]
[1748767786321,6.51809834,153.42,153.35,6.52103032]
[1748767788421,6.51763018,153.43,153.35,6.52103032]
[1748767792136,12.77573428,153.42,153.35,6.52103032]
[1748767792838,14.39133428,153.42,153.35,6.52103032]
[1748767797236,8.13393428,153.42,153.35,6.52103032]
[1748767799559,8.13393428,153.42,153.33,129.48]
[1748767799846,8.13393428,153.42,153.33,89.6]
[1748767800347,26.0,153.41,153.33,89.6]
[1748767800642,26.0,153.41,153.3,6.5231572]
[1748767800643,26.0,153.39,153.3,6.5231572]
[1748767800816,36.32,153.39,153.3,46.4031572]
[1748767801541,6.51975485,153.38,153.3,46.4031572]
[1748767802219,6.51975485,153.38,153.3,6.5231572]
[1748767804652,22.81914199,153.38,153.29,25.17309465]
[1748767805541,22.81914199,153.38,153.28,42.84388465]
[1748767805844,26.0,153.35,153.27,46.40438304]
[1748767806219,26.0,153.35,153.27,6.52438304]
[1748767806649,6.52145558,153.34,153.27,6.52438304]
[1748767815850,6.52145558,153.34,153.27,46.40438304]
[1748767817058,10.32,153.4,153.28,44.933972]
[1748767817255,36.32,153.4,153.28,44.933972]
[1748767817454,36.32,153.4,153.29,10.32]
[1748767817832,0.28432314,153.39,153.29,10.32]
[1748767819057,0.28432314,153.39,153.3,6.5231572]
[1748767819058,6.51975485,153.38,153.3,6.5231572]
[1748767821160,26.0,153.38,153.3,22.83105022]
[1748767821336,16.83908023,153.4,153.31,18.79181043]
[1748767821541,26.0,153.39,153.31,18.79181043]
[1748767822462,26.0,153.39,153.32,6.52230628]
[1748767822666,32.51933401,153.39,153.32,6.52230628]
[1748767823732,32.51933401,153.39,153.31,18.79181043]
[1748767823964,26.0,153.39,153.31,18.79181043]
[1748767825147,10.32,153.4,153.33,18.79181043]
[1748767825666,93.9,153.43,153.33,18.79181043]
[1748767825862,93.9,153.43,153.34,39.88]
[1748767826653,93.9,153.43,153.35,18.79181043]
[1748767827049,93.9,153.43,153.36,6.52060511]
[1748767827837,16.83725027,153.44,153.36,6.52060511]
[1748767828943,10.32,153.44,153.36,22.82211789]
[1748767829257,10.32,153.44,153.37,18.79181043]
[1748767829747,32.51636531,153.46,153.37,18.79181043]
[1748767830138,26.0,153.46,153.37,18.79181043]
[1748767830662,32.51646968,153.46,153.37,18.79181043]
[1748767830849,5.96117699,153.47,153.37,44.79181043]
[1748767830850,12.47720523,153.47,153.37,44.79181043]
[1748767831042,12.47720523,153.47,153.38,6.51975485]
[1748767831359,5.96117699,153.47,153.39,39.88]
[1748767832669,12.4771615,153.47,153.39,39.88]
[1748767832969,6.51598451,153.47,153.39,39.88]
[1748767833268,6.51598451,153.47,153.4,6.51890482]
[1748767834647,42.83561447,153.48,153.4,6.51890482]
[1748767839972,36.32,153.48,153.4,22.81616687]
[1748767841376,42.83564231,153.48,153.4,22.81616687]
[1748767841761,42.83564231,153.48,153.4,6.51890482]
[1748767848891,36.32,153.48,153.4,22.81616687]
[1748767850592,42.83551808,153.48,153.4,22.81616687]
[1748767852870,42.83551808,153.48,153.4,6.51890482]
[1748767853080,42.83551808,153.48,153.4,46.35890482]
[1748767867583,42.83551808,153.48,153.4,39.84]
[1748767868584,42.83551808,153.48,153.41,6.51847989]
[1748767869801,42.83551808,153.48,153.4,46.35886654]
[1748767870000,42.83551808,153.48,153.38,6.51975485]
[1748767870203,26.0,153.45,153.38,6.51975485]
[1748767871888,6.51720542,153.44,153.38,6.51975485]
[1748767873512,10.32,153.48,153.39,18.79181043]
[1748767874513,16.83567503,153.48,153.4,6.51890482]
[1748767880027,26.0,153.45,153.36,10.3]
[1748767880211,26.0,153.45,153.36,39.84]
[1748767881989,6.51720542,153.44,153.36,39.84]
[1748767883024,6.51720542,153.44,153.37,6.52017995]
[1748767889531,6.51720542,153.44,153.36,6.52060511]
[1748767891919,10.3,153.43,153.33,32.52188091]
[1748767892236,10.3,153.43,153.33,72.36188091]
[1748767892818,6.51805501,153.42,153.33,72.36188091]
[1748767894127,6.51805501,153.42,153.33,32.52188091]
[1748767894639,6.51805501,153.42,153.33,48.82658318]
[1748767895130,10.3,153.43,153.37,26.0]
[1748767895921,10.3,153.43,153.37,65.84]
[1748767896527,10.3,153.43,153.38,6.51975485]
[1748767901545,10.3,153.43,153.36,22.82130299]
[1748767901728,10.3,153.43,153.36,62.66130299]
[1748767904039,10.3,153.43,153.37,18.79181043]
[1748767905249,10.3,153.43,153.37,6.52017995]
[1748767910154,7.6378,153.45,153.38,26.0]
[1748767910444,1.5964,153.45,153.4,26.0]
[1748767910637,6.4384,153.49,153.42,18.79181043]
[1748767911950,6.4384,153.49,153.43,0.14216157]
[1748767912134,6.4384,153.49,153.44,22.81021897]
[1748767913747,6.4384,153.49,153.44,6.51720542]
[1748767914044,12.95364984,153.49,153.42,89.6]
[1748767915127,12.95364984,153.49,153.42,96.11791726]
[1748767916047,12.95364984,153.49,153.42,6.51791726]
[1748767918541,6.51524984,153.49,153.42,6.51791726]
[1748767919949,6.51524984,153.49,153.41,6.51847989]
[1748767921978,6.51524984,153.49,153.39,18.64964886]
[1748767921979,22.80295587,153.49,153.39,6.51932981]
[1748767922272,1.5114,153.48,153.38,32.51960631]
[1748767922435,1.5114,153.48,153.39,18.64964886]
[1748767922635,1.5114,153.48,153.4,0.28432314]
[1748767923367,1.5114,153.48,153.41,6.51847989]
[1748767926560,1.5114,153.48,153.42,18.79181043]
[1748767927077,10.3,153.51,153.42,18.79181043]
[1748767927934,16.81438282,153.51,153.42,18.79181043]
[1748767928647,16.81438282,153.51,153.43,6.51763018]
[1748767929969,10.3,153.51,153.43,22.81170565]
[1748767930743,16.81429086,153.51,153.43,22.81170565]
[1748767931148,16.81429086,153.51,153.43,6.51763018]
[1748767931345,1.5114,153.47,153.42,6.51788424]
[1748767931545,1.5114,153.47,153.41,89.6]
[1748767931546,1.5114,153.47,153.41,6.51832034]
[1748767932047,6.51635605,153.46,153.39,46.33932981]
[1748767932240,6.51635605,153.46,153.39,6.51932981]
[1748767932941,16.81635605,153.46,153.39,6.51932981]
[1748767934056,16.81635605,153.46,153.38,6.51975485]
[1748767936673,33.10724618,153.46,153.38,6.51975485]
[1748767936882,0.28432314,153.45,153.34,125.9]
[1748767937175,0.28432314,153.45,153.34,36.3]
[1748767937357,0.28432314,153.45,153.34,76.12]
[1748767937867,6.51805501,153.42,153.35,6.52103032]
[1748767939662,6.51777941,153.43,153.35,6.52103032]
[1748767940563,6.51720542,153.44,153.35,6.52103032]
[1748767942072,1.569,153.43,153.35,6.52103032]
[1748767942445,7.9258,153.43,153.35,6.52103032]
[1748767943262,7.9258,153.43,153.35,22.82360612]
[1748767945956,7.9258,153.43,153.36,18.79181043]
[1748767946365,1.569,153.43,153.37,22.82062984]
[1748767948160,10.3,153.46,153.38,18.79181043]
[1748767950080,10.3,153.46,153.39,6.51932981]
[1748767951056,16.81658563,153.46,153.39,6.51932981]
[1748767952784,6.51720542,153.44,153.39,6.51932981]
[1748767953301,6.037,153.45,153.39,6.51932981]
[1748767953302,12.55394674,153.45,153.39,6.51932981]
[1748767954288,6.037,153.45,153.39,6.51932981]
[1748767955163,10.3,153.46,153.39,6.51932981]
[1748767956190,10.3,153.46,153.39,22.81765434]
[1748767965780,16.81637151,153.46,153.39,6.51932981]
[1748767967388,23.42097151,153.46,153.39,6.51932981]
[1748767968380,23.42097151,153.46,153.38,6.51975485]
[1748767972414,16.81637151,153.46,153.38,6.51975485]
[1748767973489,23.15457151,153.46,153.38,6.51975485]
[1748767975610,16.6382,153.46,153.38,22.81914199]
[1748767978103,16.4690312,153.46,153.38,22.81914199]
[1748767978314,16.4690312,153.46,153.39,18.79181043]
[1748767979111,16.4690312,153.46,153.4,6.51890482]
[1748767979934,8.12754324,153.47,153.4,6.51890482]
[1748767979935,6.51168848,153.57,153.45,0.28432314]
[1748767980096,34.01730256,153.58,153.48,0.14216157]
[1748767980294,8.01730256,153.58,153.48,0.14216157]
[1748767980804,1.5059,153.58,153.48,0.14216157]
[1748767981115,1.5059,153.58,153.5,18.79181043]
[1748767982386,1.5059,153.58,153.51,22.7998176]
[1748767982591,1.5059,153.58,153.52,40.02]
[1748767984437,1.5059,153.58,153.53,6.513385]
[1748767987019,1.5059,153.58,153.53,22.79684751]
[1748767987228,11.9073,153.62,153.53,48.79684751]
[1748767987530,11.9073,153.62,153.54,18.79181043]
[1748767988313,11.9073,153.62,153.54,27.09556728]
[1748767988627,11.9073,153.62,153.55,22.79387821]
[1748767992104,18.41690715,153.62,153.55,6.51253663]
[1748767992304,18.41690715,153.62,153.53,89.6]
[1748767992625,18.41690715,153.62,153.53,6.51310394]
[1748767992626,34.69082981,153.62,153.53,6.51310394]
[1748767993601,34.69082981,153.62,153.52,6.51380927]
[1748767996930,48.78645832,153.6,153.5,10.28]
[1748767998110,48.78645832,153.6,153.5,16.79463421]
[1748767998313,6.51126448,153.58,153.5,6.51463421]
[1748768002633,6.51094285,153.59,153.51,18.79181043]
[1748768003811,6.51041666,153.6,153.52,6.51380927]
[1748768005133,6.51041666,153.6,153.5,6.51465798]
[1748768005540,10.36,153.59,153.5,6.51465798]
[1748768005911,6.51126448,153.58,153.5,6.51465798]
[1748768006617,24.40672569,153.58,153.49,32.51498676]
[1748768008933,8.12856448,153.58,153.49,32.51498676]
[1748768015252,18.48856448,153.58,153.49,32.51498676]
[1748768016961,34.76672569,153.58,153.49,26.0]
[1748768017163,6.2531,153.57,153.48,6.51520602]
[1748768018149,6.51211252,153.56,153.48,6.51520602]
[1748768021034,26.0,153.53,153.44,6.51720542]
[1748768021352,36.36,153.53,153.44,6.51720542]
[1748768021928,22.79239384,153.56,153.48,18.64964886]
[1748768021929,6.51211252,153.56,153.48,18.64964886]
[1748768022151,6.51126448,153.58,153.5,18.64964886]
[1748768022654,26.0,153.57,153.47,36.35374538]
[1748768022836,26.0,153.55,153.46,58.64964886]
[1748768023040,6.51296079,153.54,153.47,6.51593145]
[1748768031237,6.51296079,153.54,153.46,6.51635605]
[1748768032254,22.79536276,153.54,153.41,105.89517019]
[1748768032452,22.79536276,153.54,153.39,93.84]
[1748768032453,26.0,153.51,153.4,6.51890482]
[1748768032648,10.38,153.5,153.41,26.0]
[1748768033445,6.51508241,153.49,153.42,6.51805501]
[1748768039049,6.51508241,153.49,153.4,6.51890482]
[1748768046484,22.80278844,153.49,153.4,6.51890482]
[1748768047481,6.51593145,153.47,153.4,6.51890482]
[1748768047694,22.80576008,153.47,153.35,50.28]
[1748768047891,26.0,153.44,153.36,6.52060511]
[1748768048092,36.38,153.43,153.36,6.52060511]
[1748768048293,36.38,153.43,153.34,6.5210393]
[1748768048874,36.38,153.43,153.33,31.6387]
[1748768048875,18.933972,153.42,153.32,6.52189818]
[1748768049387,6.51847989,153.41,153.32,6.52189818]
[1748768050468,36.38,153.43,153.32,22.82766389]
[1748768052068,42.89769838,153.43,153.32,22.82766389]
[1748768053086,6.80239039,153.42,153.32,22.82766389]
[1748768053491,8.39199039,153.42,153.32,22.82766389]
[1748768054293,27.04163925,153.42,153.32,22.82766389]
[1748768054489,33.17723925,153.42,153.32,22.82766389]
[1748768054686,73.09723925,153.42,153.32,22.82766389]
[1748768057077,54.44759039,153.42,153.32,22.82766389]
[1748768063896,14.52759039,153.42,153.32,22.82766389]
[1748768064203,7.7252,153.42,153.32,22.82766389]
[1748768065183,14.24335308,153.42,153.32,22.82766389]
[1748768065581,25.45249607,153.41,153.32,22.82766389]
[1748768065786,0.28432314,153.39,153.32,6.52189818]
[1748768066007,10.32,153.38,153.32,6.52189818]
[1748768068214,10.32,153.41,153.34,26.0]
[1748768069514,10.32,153.41,153.33,39.92]
[1748768069804,10.32,153.41,153.34,6.52145558]
[1748768070229,16.83861784,153.41,153.34,6.52145558]
[1748768070401,0.28432314,153.4,153.34,6.52145558]
[1748768072019,6.80355067,153.4,153.31,22.82956102]
[1748768078921,6.80355067,153.4,153.31,6.52273172]
[1748768083039,6.80355067,153.4,153.27,18.933972]
[1748768083040,0.28432314,153.35,153.24,18.64964886]
[1748768083207,26.0,153.32,153.24,6.5257113]
[1748768083524,26.0,153.31,153.24,6.5257113]
[1748768083728,26.0,153.31,153.22,6.52656311]
[1748768084031,7.5982,153.3,153.22,6.52656311]
[1748768084242,10.32,153.29,153.22,6.52656311]
[1748768084934,6.52400835,153.28,153.2,6.52741514]
[1748768086215,26.0,153.25,153.14,5.6387]
[1748768086537,0.28432314,153.23,153.15,6.52954619]
[1748768087520,6.52656311,153.22,153.15,6.52954619]
[1748768089131,6.52656311,153.22,153.14,12.16852992]
[1748768089313,0.28432314,153.21,153.1,30.8200275]
[1748768089514,0.28432314,153.21,153.11,26.0]
[1748768090037,32.52656311,153.22,153.11,26.0]
[1748768091016,32.52656311,153.22,153.12,6.53082549]
[1748768092217,26.0,153.18,153.09,6.53210529]
[1748768092523,10.46,153.17,153.08,7.48018387]
[1748768092710,0.28432314,153.16,153.08,7.48018387]
[1748768093411,10.46,153.17,153.07,2.71355671]
[1748768093412,26.0,153.14,153.07,2.71355671]
[1748768093617,0.28432314,153.11,153.07,2.71355671]
[1748768093829,10.74432314,153.11,153.07,2.71355671]
[1748768094236,50.0,153.19,153.07,2.71355671]
[1748768094414,44.933972,153.15,153.07,2.71355671]
[1748768096109,26.0,153.1,153.07,2.71355671]
[1748768096519,10.46,153.11,153.07,2.71355671]
[1748768097340,10.48,153.15,153.07,9.24645646]
[1748768097535,10.48,153.15,153.08,18.79181043]
[1748768098249,10.48,153.15,153.08,6.532532]
[1748768098831,10.48,153.15,153.08,22.86386202]
[1748768101142,43.0081839,153.19,153.09,18.79181043]
[1748768102150,36.48,153.19,153.09,18.79181043]
[1748768102453,43.00789128,153.19,153.1,22.86087524]
[1748768102836,36.48,153.19,153.1,22.86087524]
[1748768103020,10.48,153.19,153.11,18.79181043]
[1748768103327,104.42,153.23,153.14,26.0]
[1748768103845,10.48,153.27,153.15,44.933972]
[1748768104271,17.00468698,153.27,153.19,26.0]
[1748768104847,17.00468698,153.27,153.16,46.94911987]
[1748768105044,33.31577199,153.27,153.17,26.0]
[1748768106165,33.31577199,153.27,153.17,32.52828277]
[1748768106345,18.933972,153.26,153.16,26.0]
[1748768107440,59.333972,153.26,153.16,26.0]
[1748768107641,0.28432314,153.24,153.14,32.52984875]
[1748768107841,0.28432314,153.22,153.11,18.64964886]
[1748768108066,10.48,153.21,153.12,26.0]
[1748768108249,6.52741514,153.2,153.14,6.52997257]
[1748768108464,10.48,153.21,153.14,6.52997257]
[1748768109155,17.00704678,153.21,153.14,6.52997257]
[1748768110874,10.48,153.21,153.14,6.52997257]
[1748768111077,17.00699423,153.21,153.14,6.52997257]
[1748768111572,17.00699423,153.21,153.09,16.32939715]
[1748768111745,0.28432314,153.19,153.08,18.64964886]
[1748768112177,0.28432314,153.19,153.09,26.0]
[1748768112754,6.52826739,153.18,153.1,12.17004386]
[1748768113676,6.52826739,153.18,153.1,5.6387]
[1748768114173,6.52826739,153.18,153.1,12.17029376]
[1748768114774,6.52826739,153.18,153.1,5.6387]
[1748768114775,22.84893588,153.18,153.1,5.6387]
[1748768115150,18.933972,153.17,153.07,35.24646128]
[1748768115376,10.48,153.16,153.07,35.24646128]
[1748768115581,10.44443303,153.16,153.07,35.24646128]
[1748768118672,6.52954619,153.15,153.07,35.24646128]
[1748768121181,10.44443303,153.16,153.08,18.79181043]
[1748768121480,16.97355365,153.16,153.08,18.79181043]
[1748768122090,16.97355365,153.16,153.07,35.24646128]
[1748768122962,10.44443303,153.16,153.08,18.79181043]
[1748768123176,10.44443303,153.16,153.09,6.53210529]
[1748768126712,10.44443303,153.16,153.09,22.86236853]
[1748768126872,149.0,153.22,153.09,22.86236853]
[1748768126873,10.6,153.2,153.12,26.0]
[1748768127197,10.6,153.2,153.13,6.530399]
[1748768127420,10.6,153.2,153.14,18.79181043]
[1748768129379,10.6,153.2,153.15,6.52954619]
[1748768132181,94.0,153.23,153.15,6.52954619]
[1748768132776,100.52625834,153.23,153.15,6.52954619]
[1748768133276,100.52625834,153.23,153.17,6.5286936]
[1748768133277,94.0,153.23,153.17,6.5286936]
[1748768134593,17.12585208,153.24,153.17,6.5286936]
[1748768135596,10.6,153.24,153.17,6.5286936]
[1748768136308,17.12571712,153.24,153.17,6.5286936]
[1748768136482,17.12571712,153.24,153.15,32.52913361]
[1748768138720,17.12571712,153.24,153.16,18.79181043]
[1748768139795,17.12571712,153.24,153.17,6.5286936]
[1748768142227,17.12571712,153.24,153.16,6.52905853]
[1748768145235,0.28432314,153.19,153.07,92.31355671]
[1748768145419,50.98,153.18,153.07,2.71355671]
[1748768145622,50.98,153.18,153.08,6.532532]
[1748768146221,10.6,153.18,153.1,26.0]
[1748768146722,10.6,153.18,153.11,18.79181043]
[1748768147222,10.6,153.18,153.12,6.53082549]
[1748768148217,10.6,153.18,153.13,18.79181043]
[1748768148519,6.5272872,153.21,153.13,18.79181043]
[1748768148910,6.5272872,153.21,153.13,44.79181043]
[1748768149115,17.12666072,153.22,153.13,44.79181043]
[1748768149317,17.12666072,153.22,153.14,6.52997257]
[1748768149512,10.6,153.22,153.15,18.79181043]
[1748768149920,17.12672303,153.22,153.15,18.79181043]
[1748768151028,17.12672303,153.22,153.16,6.52911987]
[1748768151814,17.12672303,153.22,153.14,6.52997257]
[1748768155312,17.12672303,153.22,153.13,32.5302542]
[1748768155512,17.12672303,153.22,153.13,26.0]
[1748768155513,43.12672303,153.22,153.13,26.0]
[1748768155730,43.12672303,153.22,153.11,89.6]
[1748768156129,43.12672303,153.22,153.11,115.6]